Cogmind - Beta 16.1 @@@ ROGUE MODE // 2026.04.01 @ 23:04:55 Player: phosphophyllite Result: Destroyed by 01-MTF with 01-MTF's Shockpuncher Performance ------------- Evolutions (1) 500 Regions Visited (4) 800 Robots Destroyed (32) 160 Value Destroyed (751) 751 Prototype IDs (1) 20 Alien Tech Used (0) 0 Bonus (-573) -573 TOTAL SCORE: 1658 Bonus ------- Friendly Fire -573 Cogmind --------- Core Integrity 0/400 Matter 230/300 Energy 100/100 System Corruption 6% Temperature Cool (0) Movement Core (100) Ox1 Location -9/Storage Parts ------- > --- POWER (1) -------- (None) > --- PROPULSION (2) --- (None) > --- UTILITY (4) ------ Small Storage Unit > --- WEAPON (2) ------- (None) > --- INVENTORY (8) ---- Light Treads Light Treads Light Treads Improved Flight Unit Disposable Heat Sink Medium Matter Pod (100) ECM Suite Peak State ------------ > --- POWER ------------ Improved Ion Engine > --- PROPULSION ------- Light Treads Light Treads > --- UTILITY ---------- Small Storage Unit Medium Matter Pod Medium Armor Plating Medium Armor Plating > --- WEAPON ----------- EM Shotgun EM Shotgun > --- INVENTORY -------- Light Ion Engine Light Treads Light Treads Improved Flight Unit Disposable Heat Sink Medium Matter Pod ECM Suite Small Laser [Rating: 15] Favorites ----------- Power Ion Engine Engine Ion Engine Propulsion Light Treads Treads Light Treads Leg Aluminum Leg Utility Small Storage Unit Device ECM Suite Storage Small Storage Unit Protection Medium Armor Plating Weapon EM Shotgun Energy Gun EM Shotgun Ballistic Gun Light Assault Rifle Launcher Rocket Launcher Build | -11 -10 -10 -9 -9 ------- Run | Yrd Mat Min Mat Sto Slots Evolved 2 | . . . 2 . Power . | . . . . . Propulsion . | . . . . . Utility 2 | . . . 2 . Weapon . | . . . . . Parts Attached 23 | 7 6 . 5 5 Power 3 | 1 . . 1 1 Engine 3 | 1 . . 1 1 Core . | . . . . . Reactor . | . . . . . Propulsion 6 | 2 2 . . 2 Treads 4 | . 2 . . 2 Leg 2 | 2 . . . . Wheel . | . . . . . Hover . | . . . . . Flight . | . . . . . Utility 5 | 1 2 . 2 . Device 1 | . 1 . . . Storage 2 | 1 . . 1 . Processor . | . . . . . Hackware . | . . . . . Protection 2 | . 1 . 1 . Artifact . | . . . . . Weapon 9 | 3 2 . 2 2 Energy Gun 5 | 2 2 . 1 . Energy Cannon . | . . . . . Ballistic Gun 1 | 1 . . . . Ballistic Cannon . | . . . . . Launcher 3 | . . . 1 2 Special Weapon . | . . . . . Impact Weapon . | . . . . . Slashing Weapon . | . . . . . Piercing Weapon . | . . . . . Special Melee Weapon . | . . . . . Unidentified Prototypes . | . . . . . Corrupted Parts 1 | . . . 1 . System Corruption 2 | . . . 2 . Parts Lost 13 | . . . 5 8 Power 2 | . . . . 2 Propulsion 2 | . . . . 2 Utility 3 | . . . 2 1 Weapon 6 | . . . 3 3 Highest Loss Streak 7 | . . . 5 7 To Critical Strikes . | . . . . . Average Backups 6 | 2 5 8 7 7 Power . | . 1 1 1 . Propulsion 2 | 1 2 2 3 4 Utility 2 | . 1 4 2 3 Weapon . | . 1 1 . . Tool/Special . | . . . . . Unused Backups 4 | . . . . 4 Power . | . . . . . Propulsion 2 | . . . . 2 Utility 2 | . . . . 2 Weapon . | . . . . . Tool/Special . | . . . . . Average Slot Usage (%) 90 | . 92 100 96 65 Engine 12 | . 13 14 11 10 Treads 18 | . 6 28 22 21 Leg 5 | . 21 . . . Storage 18 | . 14 14 22 21 Protection 11 | . 5 14 19 . Energy Gun 17 | . 18 28 20 . Ballistic Gun 2 | . 8 . . . Launcher 2 | . . . . 12 Peak Build Rating 15 | 6 10 10 15 10 Average Rating 10 | 4 7 10 13 8 On Entrance 7 | . 6 10 10 9 Avg Prop Armor Cover (%) . | . . . . . Naked Turns . | . . . . . Heaviest Build 34 | 13 23 23 34 18 Greatest Support 40 | 20 40 40 40 40 Greatest Overweight (x) 1 | . 1 . . 1 Average Overweight (x) . | . . . . . Largest Inventory Capacity 8 | 8 8 8 8 8 Average Capacity 7 | 6 8 8 8 8 Most Carried 8 | 5 8 8 8 8 Average Carried 6 | 3 5 8 7 7 Final Capacity 8 | 8 8 8 8 8 Final Carried 8 | 4 8 8 8 7 Class Distribution -------------------- 100% | Mutant Dominant Class ---------------- Mutant | -10/Materials Mutant | -10/Mines Mutant | -9/Materials Mutant | -9/Storage Resources | -11 -10 -10 -9 -9 ----------- Run | Yrd Mat Min Mat Sto Matter Collected 799 | 257 37 40 316 149 Remotely . | . . . . . Salvage Created 1088 | . 37 38 802 211 Parts 59 | . 2 4 40 13 Haulers Intercepted . | . . . . . Recyclers Shooed 1 | . . . . 1 Parts Field Recycled . | . . . . . Retrieved Matter . | . . . . . Parts Self-Destructed . | . . . . . Prevented . | . . . . . Parts Restored . | . . . . . Kills | -11 -10 -10 -9 -9 ------- Run | Yrd Mat Min Mat Sto Combat Hostiles Destroyed 20 | . . 3 12 5 Guns 13 | . . 3 10 . AOE 6 | . . . 1 5 Classes Destroyed 7 | . 1 1 5 . Worker 4 | . . . 2 2 Builder 1 | . . . 1 . Recycler 3 | . . . 2 1 Watcher 4 | . 2 . 1 1 Swarmer 5 | . . 3 . 2 Grunt 11 | . . . 9 2 Sentry 4 | . . . 3 1 Best Kill Streak 4 | . 1 3 4 3 Combat Bots Only 3 | . . 3 3 2 Max Kills in Single Turn 2 | . 1 1 1 2 Gunslinging . | . . . . . Exploded 2 | . . . 1 2 Melee . | . . . . . Uniques/NPCs Destroyed . | . . . . . Combat | -11 -10 -10 -9 -9 -------- Run | Yrd Mat Min Mat Sto Hostile Shots Fired 116 | . . 7 69 40 Missed 27 | . . 4 16 7 Hits 89 | . . 3 53 33 Projectile 89 | . . 3 53 33 Critical Strikes 3 | . . . 1 2 Part Disruptions 3 | . . . . 3 Damage Taken 1762 | . . 63 755 944 Core 410 | . . . 105 305 Absorbed by Shields . | . . . . . Core Remaining (%) 100 | 100 . 100 . . Volleys Fired 59 | . 4 4 36 15 Largest 2 | . 2 2 2 2 Hottest 90 | . 90 90 90 63 Shots Fired 99 | . 8 8 64 19 Gun 78 | . 8 8 62 . Cannon . | . . . . . Launcher 21 | . . . 2 19 Special . | . . . . . Kinetic 3 | . 3 . . . Thermal 8 | . 3 . 5 . Explosive 21 | . . . 2 19 Electromagnetic 67 | . 2 8 57 . Robot Hit Streak 24 | . 3 5 23 24 Robot Miss Streak 3 | . 1 3 2 3 Penetration Max . | . . . . . Secondary Targets 1 | . . 1 . . Max Gunslinging Chain 1 | . . 1 . . Shots Hit Robots 75 | . 4 5 55 11 Core Hits 63 | . 2 3 37 21 Critical Kills . | . . . . . Critical Parts Destroyed . | . . . . . Critical Strikes . | . . . . . Melee Attacks . | . . . . . Impact . | . . . . . Slashing . | . . . . . Piercing . | . . . . . Sneak Attacks . | . . . . . Combat Hostiles . | . . . . . Follow-up Attacks . | . . . . . Damage Inflicted 2365 | . 47 114 1038 1166 Guns 976 | . 47 46 883 . Cannons . | . . . . . Explosions 1389 | . . 68 155 1166 Melee . | . . . . . Ramming . | . . . . . Kinetic 19 | . 19 . . . Thermal 238 | . 12 68 158 . Explosive 1249 | . . . 83 1166 Electromagnetic 859 | . 16 46 797 . Impact . | . . . . . Slashing . | . . . . . Piercing . | . . . . . Highest Corruption 5 | . . . 2 5 Average Corruption 2 | . . . 2 2 Corruption Purged . | . . . . . Corruption Blocked . | . . . . . Effects 5 | . . . . 5 Message Errors 1 | . . . . 1 Matter Fused 1 | . . . . 1 Energy Discharges 1 | . . . . 1 Parts Rejected 1 | . . . . 1 Data Loss (minor) 1 | . . . . 1 Overload Shots . | . . . . . Overflow Damage 70 | . . . 13 57 Projectiles . | . . . . . Explosions 70 | . . . 13 57 Melee . | . . . . . Knockbacks . | . . . . . Impact . | . . . . . Kinetic . | . . . . . Secondary . | . . . . . Self-Inflicted Damage 436 | . . 38 80 318 Shots 14 | . . 1 3 10 Rammed . | . . . . . Targets Rammed . | . . . . . Kicked . | . . . . . Crushed . | . . . . . Highest Temperature 265 | . 40 168 265 1 Average Temperature 83 | . 20 86 89 1 Received Heat Transfer 375 | . . . 318 57 Effects 5 | . . . 5 . Energy Bleed 2 | . . . 2 . Interference 3 | . . . 3 . Siege Activations . | . . . . . Martial Activations . | . . . . . Shielding Activations . | . . . . . Robots Disrupted . | . . . . . Combat Hostiles . | . . . . . Robots Corrupted 1 | . . . 1 . Combat Hostiles 1 | . . . 1 . Parts Fried 4 | . . . 4 . Impact Corruptions . | . . . . . Robots Melted . | . . . . . Combat Hostiles . | . . . . . Parts Melted 1 | . 1 . . . Heat Transferred 372 | . 37 100 235 . Parts Sabotaged . | . . . . . Parts Stolen . | . . . . . Parts Stripped . | . . . . . Power Chain Reactions 2 | . . 1 1 . Alert | -11 -10 -10 -9 -9 ------- Run | Yrd Mat Min Mat Sto Maximum Alert Level . | . . . . . Low Security (%) 100 | 100 100 100 100 100 Level 1 . | . . . . . Level 2 . | . . . . . Level 3 . | . . . . . Level 4 . | . . . . . Level 5 . | . . . . . High Security . | . . . . . Max Security . | . . . . . Peak Influence 185 | . 7 74 126 185 Initial 52 | . . . . 52 Average 38 | . . 24 42 107 Influence Increases 726 | . 14 74 353 285 Destroy 0b10 Robot/C 400 | . . 60 240 100 Destroy 0b10 Robot/NC 60 | . 10 . 30 20 Destroy Leader 88 | . 4 10 62 12 Successful Hack 3 | . . . 3 . Disable Machine 45 | . . . . 45 Destroy Structure 130 | . . 4 18 108 Influence Decreases 589 | . 14 74 227 274 Entered New Map 74 | . . . . 74 Time Decay 385 | . 14 74 177 120 Lost Part 130 | . . . 50 80 Squads Dispatched 1 | . . . 1 . Investigation 1 | . . . 1 . Extermination . | . . . . . Reinforcement . | . . . . . Assault . | . . . . . Garrison . | . . . . . Intercept . | . . . . . Searches Triggered . | . . . . . Construction Impeded . | . . . . . Haulers Reinforced . | . . . . . Active Scanning Responses . | . . . . . Cargo Convoy Interrupts . | . . . . . Stealth | -11 -10 -10 -9 -9 --------- Run | Yrd Mat Min Mat Sto Distress Signals 4 | . . . 2 2 Communications Jammed . | . . . . . Distress Signals . | . . . . . Times Spotted 36 | . 4 3 15 14 Peak Tracking Total 7 | . 1 3 7 3 Tactical Retreats 2 | . . . . 2 Traps | -11 -10 -10 -9 -9 ------- Run | Yrd Mat Min Mat Sto Traps Triggered 2 | . 1 . . 1 Indirectly . | . . . . . Trap Hack Attempts . | . . . . . Triggered . | . . . . . Disarmed . | . . . . . Reprogrammed . | . . . . . Reused . | . . . . . Traps Extracted . | . . . . . Installed . | . . . . . Triggered . | . . . . . Machines | -11 -10 -10 -9 -9 ---------- Run | Yrd Mat Min Mat Sto Machines Disabled 3 | . . . . 3 Max in Single Turn 1 | . . . . 1 Machines Repaired . | . . . . . Machines Dismantled . | . . . . . Machines Sabotaged . | . . . . . Overloaded Fab Kills . | . . . . . Hacking | -11 -10 -10 -9 -9 --------- Run | Yrd Mat Min Mat Sto Machines Accessed 2 | . . . 2 . Terminals . | . . . . . Fabricators . | . . . . . Repair Stations . | . . . . . Recycling Units . | . . . . . Scanalyzers 2 | . . . 2 . Garrison Access . | . . . . . Total Hacks 7 | . . . 7 . Successful 5 | . . . 5 . Failed 2 | . . . 2 . Catastrophic . | . . . . . Database Lockouts . | . . . . . Manual . | . . . . . Terminals . | . . . . . Fabricators . | . . . . . Repair Stations . | . . . . . Recycling Units . | . . . . . Scanalyzers 7 | . . . 7 . Garrison Access . | . . . . . Terminal Hacks . | . . . . . Fabricator Hacks . | . . . . . Repair Station Hacks . | . . . . . Recycling Unit Hacks . | . . . . . Scanalyzer 5 | . . . 5 . Insert Component 3 | . . . 3 . Analyze 2 | . . . 2 . Garrison Access Hacks . | . . . . . Unauthorized Hacks . | . . . . . Terminals . | . . . . . Fabricators . | . . . . . Repair Stations . | . . . . . Recycling Units . | . . . . . Scanalyzers . | . . . . . Garrison Access . | . . . . . Data Cores Recovered . | . . . . . Used . | . . . . . Hacking Detections 2 | . . . 2 . Full Trace Events 1 | . . . 1 . Feedback Events . | . . . . . Feedback Blocked . | . . . . . Robot Schematics Acquired . | . . . . . Robots Built . | . . . . . Authchips . | . . . . . Time . | . . . . . Total Robot Build Rating . | . . . . . Part Schematics Acquired 1 | . . . 1 . Parts Built . | . . . . . Authchips . | . . . . . Time . | . . . . . Total Part Build Rating . | . . . . . Part Studies Acquired . | . . . . . Parts Repaired . | . . . . . Time . | . . . . . Parts Recycled . | . . . . . Recycled Matter . | . . . . . Retrieved Matter . | . . . . . Retrieved Components . | . . . . . Parts Scanalyzed 1 | . . . 1 . Part Schematics Acquired 1 | . . . 1 . Parts Damaged . | . . . . . Bothacking | -11 -10 -10 -9 -9 ------------ Run | Yrd Mat Min Mat Sto Used RIF Installer . | . . . . . Robots Hacked . | . . . . . Non-combat . | . . . . . Combat . | . . . . . Robot Hacks Applied . | . . . . . Relay Couplers Released . | . . . . . Fabnet Peak Effective % . | . . . . . Robots Rewired . | . . . . . Allies Hacked . | . . . . . Hacks Repelled . | . . . . . Allies | -11 -10 -10 -9 -9 -------- Run | Yrd Mat Min Mat Sto Total Allies . | . . . . . Largest Group . | . . . . . Highest-Rated Group . | . . . . . Highest-Rated Ally . | . . . . . Total Orders . | . . . . . Ally Attacks . | . . . . . Total Damage . | . . . . . Kills . | . . . . . Allies Corrupted . | . . . . . Allies Melted . | . . . . . Intel | -11 -10 -10 -9 -9 ------- Run | Yrd Mat Min Mat Sto Active Infowar (turns) 96 | . 96 . . . ECM 96 | . 96 . . . Robot Analysis Total . | . . . . . Derelict Logs Recovered . | . . . . . Drone Launches . | . . . . . Drone Recoveries . | . . . . . Exploration | -11 -10 -10 -9 -9 ------------- Run | Yrd Mat Min Mat Sto Turns Passed 1393 | 84 338 226 498 247 Spaces Moved 710 | 62 192 128 201 127 Core 8 | 6 . . . 2 Treads 498 | . 44 128 201 125 Legs 204 | 56 148 . . . Wheels . | . . . . . Hover . | . . . . . Flight . | . . . . . Fastest Speed 50 | 50 120 160 160 100 Average Speed 149 | 113 138 160 160 159 Slowest Speed 240 | 120 240 160 160 160 Overloaded Moves . | . . . . . Propulsion Burnouts . | . . . . . Robots Hopped . | . . . . . Potential Cave-ins . | . . . . . Cave-ins Triggered . | . . . . . Exploration Rate (%) 27 | 5 38 38 17 38 Regions Visited 4 Branch Regions 2 Pre-discovered Areas . | . . . . . Known Exits Taken . | . . . . . Unknown Exits Taken 4 | 1 1 1 1 . Scrap Searched 1 | . . 1 . . Spaces Dug 7 | . . . 7 . Terrain Destroyed 128 | . . 4 18 106 Melee . | . . . . . Projectile . | . . . . . AOE 128 | . . 4 18 106 Terrain Rammed . | . . . . . Walls Destroyed . | . . . . . Machines Disabled . | . . . . . Actions | -11 -10 -10 -9 -9 --------- Run | Yrd Mat Min Mat Sto Total 935 | 73 256 141 314 151 Wait 119 | . 41 10 66 2 Move 706 | 61 191 127 200 127 Hop . | . . . . . Pick Up 13 | 5 4 . 3 1 Fast Attach 17 | 5 8 . 2 2 Attach 8 | 1 2 . 3 2 Detach 3 | . 2 . 1 . Swap 4 | 1 . . 1 2 Drop 6 | . 4 . 2 . Fire 59 | . 4 4 36 15 Melee . | . . . . . Ram . | . . . . . Kick . | . . . . . Crush . | . . . . . Escape Stasis . | . . . . . Rewire . | . . . . . Trap . | . . . . . Miscellaneous . | . . . . . Route ------- -11/Scrapyard -10/Materials -10/Mines -9/Materials -9/Storage History --------- Turn | Location | Event 4 | -11/Scrapyard | Discovered new exit (range 14) 85 | -11/Scrapyard | Entered Materials 309 | -10/Materials | Discovered new exit (range 16) 317 | -10/Materials | Build established: Mutant 423 | -10/Materials | Entered Mines 572 | -10/Mines | Discovered new exit (range 14) 649 | -10/Mines | Entered Materials 649 | -9/Materials | Evolved 2 slots: Utility x2 941 | -9/Materials | Discovered new exit (range 15) 1147 | -9/Materials | Entered Storage 1151 | -9/Storage | Lost 5 parts (2u3w) 1188 | -9/Storage | Met 01-MTF 1380 | -9/Storage | Core integrity fell below 50% 1387 | -9/Storage | Core integrity fell below 20% 1394 | -9/Storage | Destroyed by 01-MTF with 01-MTF's Shockpuncher Last Messages --------------- 01375_ K-01 Serf collects debris. 01376_ Rocket Launcher destroyed. 01376_ Destroyed Mak. Cloaking Device. 01378_ K-01 Serf collects debris. 01378_ Med. Matter Pod destroyed. 01380_ Compression Vault explodes. 01380_ K-01 Serf collects debris. 01382_ Critical hit (Burn: +37). 01382_ K-01 Serf collects debris. 01386_ Lgt. Treads destroyed. 01386_ Destroyed Lgt. Treads. 01387_ K-01 Serf collects debris. 01389_ Mni. Grenade Launcher destroyed. 01389_ Destroyed Mni. Grenade Launcher. 01389_ W-16 Scout destroyed. 01390_ Lgt. Treads destroyed. 01390_ Door Terminal disabled. 01392_ Mni. Grenade Launcher destroyed. 01392_ K-01 Serf collects debris. 01393_ The unstable cave ceiling collapses. Map ----- +----------------------------------------------------+ | | | | | | | | | | | | | | | | | | | ?????????????????????????????????????????????????? | | ?????????????????????????????????????????????????? | | ??????????????????????????"??????????????????????? | | ?????????????????????????"T"??#??????????????????? | | ??????????????????????###" "?#%#?????????????????? | | ??????????????????????# ?!*#############?????# | | ??????????????????????# """[## # ????? | | ????????????? ????????# """ # # ????" | | ????????????? ??????# """ !! # "???" | | ????????????? ????# !! # ""??" | | ?????????????? "???# !! # "??" | | ???????????????? ??# # "??[ | | ????????????????? ?# # """" | | ??????????????????? # [ # | | ?????????????####+#### # # +#!%= ## # | | ?????????? Y % p % * | | ?????????? @ ! a %= | | ??????????w m k % | | ?????????????####+### # #+# # # ## | | ??????????????????????#### # k ##### # | | ????????????????????????# #### #???## | | ????????????????????????## ##"" #????### | | ?????????????????????????#! !##"T !% *#?????T# | | ?????????????????????????#! !##"" ! =%#??????+ | | ?????????????????????????#! !#### !! ![#?????# | | ?????????????????????????#! !#??# ##?????# | | ?????????????????????????#####??# #??????# | | ????????????????????????????????# #??????# | | ????????????????????????????????##########??????# | | ????????????????????????????????????????????????# | | ????????????????????????????????????????????????# | | ???????????????????????????????????????????????## | | ???????????????????????????????????????????????## | | ???????????????????????????????????????????????## | | ???????????????????????????????????#""?????????## | | ???????????????????????????????????? ????????## | | ?????????????????????????????????????#/########## | | ?????????????????????????????????? = %* | | ??????????????????????????????????????##+##### ## | | ??????????????????????????????????????# %[ | | ??????????????????????????????????????# """ | +----------------------------------------------------+ Best States ------------- Heat Dissipation 28 Energy Generation 12 Energy Capacity 265 Matter Stores 400 Matter Capacity 400 Sight Range 16 Terrain Scan Density 10 ECM Strength 1 Armor Coverage 450 Evasion (%) 55 Recoil Reduction 2 Item Schematics ----------------- Imp. Flight Unit | -9/Materials | Scanalyzed Robot Schematics ------------------ None Fabricated ------------ Nothing Repaired ---------- Nothing Studied --------- None Alien Tech Used ----------------- None Achievements -------------- None Challenges ------------ None Game ------ Seed EtherialAlphaComputer Manual? 0 Play Time 00:14:19 Cumulative 14.9 hours Start 2026.04.01 @ 22:52:46 End 2026.04.01 @ 23:04:55 Sessions 1 Manual Loads 0 Difficulty Rogue Special Mode None Game No. 26 Rogue 26 Adventurer 0 Explorer 0 Win Type - Total 0 Types 0/0/0/0/0/0/0/0/0/0 Lore% 7 Gallery% 19 Achievement% 15 Wizard Run 0 Options --------- Layout 1 ASCII 0 Keyboard 0 Movement Numpad Keybinds 0 Fullscreen 2 Font 24/Smallcaps Map View 50x35 Zoom Use 0% Tactical HUD 1 Map Filters NONE Filters NONE Steam 1 RUN: 24ddcf83-3658-4010-b34f-75540879b56a